bitfinex/quotes_ETHUSD_20240823
["timestamp","ask_amount","ask_price","bid_price","bid_amount"]
[1724413826344,4.66761157,2661.6,2661.2,2.2681]
[1724413826575,3.75714,2661.6,2661.3,0.06009038]
[1724413826845,3.75714,2661.6,2661.2,2.2681]
[1724413827039,3.75714,2661.6,2661.4,0.05998929]
[1724413827459,3.75714,2661.6,2661.2,2.2681]
[1724413827670,3.75714,2661.6,2661.5,0.05989277]
[1724413827874,3.75714,2661.6,2661.2,2.2681]
[1724413828080,3.75714,2661.6,2661.5,0.05989277]
[1724413828282,3.75714,2661.6,2661.2,2.2681]
[1724413828464,3.75714,2661.6,2661.5,0.05989277]
[1724413828793,3.75714,2661.6,2661.2,2.2681]
[1724413829082,3.75714,2661.6,2661.5,0.05989277]
[1724413829553,3.75714,2661.6,2661.2,2.2681]
[1724413829746,3.75714,2661.6,2661.3,0.06008582]
[1724413829946,3.75714,2661.6,2661.2,2.2681]
[1724413830147,3.75714,2661.6,2661.3,0.06008582]
[1724413830369,3.75714,2661.6,2661.2,2.2681]
[1724413830685,3.75714,2661.6,2661.3,0.06008582]
[1724413831192,3.75714,2661.6,2661.4,0.05998929]
[1724413831705,3.75714,2661.6,2661.2,2.2681]
[1724413832148,3.75714,2661.6,2661.3,0.06008582]
[1724413832344,3.75686,2661.8,2661.2,2.2681]
[1724413832577,3.75686,2661.8,2661.3,0.28689582]
[1724413833989,6.02728,2662.0,2661.4,2.4909]
[1724413834152,1.59056573,2661.9,2661.4,2.4909]
[1724413834481,2.2707,2662.0,2661.5,0.05989733]
[1724413834691,3.86126573,2662.0,2661.5,0.33765806]
[1724413835256,1.59056573,2662.0,2661.5,0.33765806]
[1724413837073,1.59056573,2662.1,2661.5,4.09487806]
[1724413837268,1.59056573,2662.1,2661.7,2.3985]
[1724413837684,1.59056573,2662.1,2661.8,0.05955304]
[1724413838188,1.59056573,2662.1,2661.9,0.05934703]
[1724413838363,1.59056573,2662.1,2661.7,2.3985]
[1724413838895,1.59056573,2662.1,2661.8,0.05944353]
[1724413839185,1.59056573,2662.1,2661.7,2.3985]
[1724413839354,1.59056573,2662.1,2661.8,0.05944353]
[1724413839554,1.59056573,2662.1,2661.7,2.3985]
[1724413839780,1.59056573,2662.1,2661.8,0.05944353]
[1724413839973,1.59056573,2662.1,2661.7,2.3985]
[1724413840175,1.59056573,2662.1,2661.8,0.05944353]
[1724413840381,1.59056573,2662.1,2661.7,2.3985]
[1724413840694,1.59056573,2662.1,2661.8,0.05944353]
[1724413841071,1.59056573,2662.1,2661.7,3.12037525]
[1724413841276,1.59056573,2662.1,2661.9,0.05934703]
[1724413841471,1.59056573,2662.1,2661.8,0.05944353]
[1724413841770,1.59056573,2662.1,2661.9,0.05934703]
[1724413842077,1.59056573,2662.1,2661.7,3.12037525]
[1724413842280,1.59056573,2662.1,2662.0,0.05925055]
[1724413842465,1.59056573,2662.1,2661.7,3.12037525]
[1724413842649,1.59056573,2662.1,2662.0,0.05925055]
[1724413842856,1.59056573,2662.1,2661.7,3.12037525]
[1724413843078,1.59056573,2662.1,2662.0,0.05925055]
[1724413843282,1.59056573,2662.1,2661.7,2.3985]
[1724413843556,5.34673573,2662.3,2661.8,0.31837218]
[1724413843868,5.34673573,2662.3,2661.9,0.05934703]
[1724413844256,5.34673573,2662.3,2661.7,2.3985]
[1724413844459,5.34673573,2662.3,2662.0,0.05920949]
[1724413844789,5.34673573,2662.3,2662.1,0.05911301]
[1724413844954,5.34673573,2662.3,2661.7,2.3985]
[1724413845156,2.338,2662.2,2661.8,0.05940246]
[1724413845355,5.34673573,2662.3,2661.7,2.3985]
[1724413845558,5.34673573,2662.3,2661.8,0.05938878]
[1724413845894,5.34673573,2662.3,2661.7,2.3985]
[1724413846069,5.34673573,2662.3,2661.9,0.05929228]
[1724413846394,5.34673573,2662.3,2662.0,0.0591958]
[1724413846754,5.34673573,2662.3,2661.7,2.3985]
[1724413846957,5.34673573,2662.3,2661.8,0.37761951]
[1724413847279,1.59056573,2662.3,2661.8,0.37761951]
[1724413850558,1.59056573,2662.3,2661.8,0.05924733]
[1724413850758,1.59056573,2662.3,2661.7,2.3985]
[1724413850977,1.59056573,2662.3,2661.8,0.05916065]
[1724413851178,1.59056573,2662.3,2661.7,2.3985]
[1724413851378,1.59056573,2662.3,2661.8,0.05916065]
[1724413851579,1.59056573,2662.3,2661.8,0.69999225]
[1724413851899,1.59056573,2662.3,2661.9,2.36596416]
[1724413854811,3.84776573,2662.3,2661.9,0.05906416]
[1724413855479,7.60391573,2662.3,2661.9,0.05906416]
[1724413855875,7.60391573,2662.3,2661.7,2.4785]
[1724413856081,7.60391573,2662.3,2662.0,0.05896767]
[1724413856299,7.60391573,2662.3,2661.7,3.18057518]
[1724413856503,3.75601,2662.4,2662.1,0.0588712]
[1724413856708,5.34657573,2662.4,2662.0,2.4964]
[1724413856867,5.34657573,2662.4,2662.2,0.05877472]
[1724413857189,5.34657573,2662.4,2662.1,0.0588712]
[1724413857369,5.34657573,2662.4,2662.2,0.05877472]
[1724413857769,5.34657573,2662.4,2662.0,2.4964]
[1724413857982,5.34657573,2662.4,2662.1,0.05878453]
[1724413859773,11.54696573,2662.4,2661.8,2.4322]
[1724413859967,7.79087573,2662.4,2661.9,0.05897749]
[1724413860266,11.54697573,2662.4,2661.9,0.05897749]
[1724413860470,1.59056573,2662.2,2661.9,0.05897749]
[1724413861272,1.59056573,2662.0,2661.9,0.05897749]
[1724413861476,5.34713573,2662.0,2661.9,0.05897749]
[1724413861808,3.75672,2661.9,2661.3,9.7761]
[1724413862311,3.96616573,2661.8,2661.3,9.7761]
[1724413864105,3.96616573,2661.8,2661.3,2.2861]
[1724413864417,3.96616573,2661.8,2661.3,5.2861]
[1724413864771,3.96616573,2661.8,2661.1,2.3215]
[1724413864772,1.59056573,2661.4,2661.1,2.3215]
[1724413864977,1.59056573,2661.4,2660.9,11.248]
[1724413864978,4.04356573,2661.4,2660.9,9.8115]
[1724413865211,1.59056573,2661.1,2660.7,2.2523]
[1724413865411,1.59056573,2661.1,2660.3,9.7423]
[1724413865412,1.59056573,2660.9,2660.3,9.7423]
[1724413865732,1.59056573,2660.9,2660.4,0.97423]
[1724413865926,1.59056573,2660.9,2660.3,2.2523]
[1724413866236,1.59056573,2660.7,2660.1,23.72916]
[1724413866593,6.12789,2661.0,2660.0,2.324]
[1724413866594,1.59056573,2660.5,2660.0,2.324]
[1724413867981,1.59056573,2660.5,2659.8,13.74896]
[1724413868281,1.59056573,2660.3,2659.8,7.49]
[1724413868479,1.59056573,2660.3,2659.6,2.4645]
[1724413869095,1.59056573,2660.3,2659.6,6.22435]
[1724413869860,1.59056573,2660.3,2659.6,2.4645]
[1724413870144,1.59056573,2660.1,2659.6,2.4645]
[1724413870294,1.59056573,2660.1,2659.6,2.61945]
[1724413870493,1.59056573,2660.1,2659.4,3.7602]
[1724413870694,1.59056573,2660.1,2659.7,0.05778671]
[1724413870928,1.59056573,2660.1,2659.4,3.7602]
[1724413871110,1.59056573,2660.1,2659.8,0.05769006]
[1724413871309,1.59056573,2660.1,2659.4,3.7602]
[1724413871569,1.59056573,2660.1,2659.9,0.05759343]
[1724413871769,1.59056573,2660.1,2659.5,0.979342]
[1724413872249,1.59056573,2660.1,2659.6,0.05788336]
[1724413873116,1.59056573,2660.3,2659.6,0.05788336]
[1724413873516,1.59056573,2660.3,2659.6,0.69666147]
[1724413874041,1.59056573,2660.3,2659.6,4.45661147]
[1724413874246,1.59056573,2660.3,2659.6,0.69666147]
[1724413875074,1.59056573,2660.3,2659.6,4.45661147]
[1724413875298,3.75885,2660.4,2659.6,4.45661147]
[1724413875584,1.59056573,2660.3,2659.6,4.45661147]
[1724413875746,1.59056573,2660.1,2659.6,0.69666147]
[1724413875947,1.59056573,2660.1,2659.6,0.05788336]
[1724413880295,4.00006573,2660.1,2659.6,0.05788336]
[1724413880791,4.00006573,2660.1,2659.4,6.76023]
[1724413881089,1.59056573,2659.9,2659.4,6.76023]
[1724413881270,1.59056573,2659.9,2659.5,0.05824492]
[1724413881647,1.59056573,2659.9,2659.2,7.49]
[1724413881648,1.59056573,2659.6,2659.2,7.49]
[1724413881863,1.59056573,2659.3,2659.1,19.7]
[1724413882483,1.59056573,2659.5,2659.1,19.7]
[1724413884166,1.59056573,2659.3,2659.1,19.7]
[1724413884371,1.59056573,2659.3,2658.6,2.462]
[1724413884556,3.76025,2659.4,2658.6,2.462]
[1724413884758,3.76049,2659.3,2658.6,2.462]
[1724413885405,3.76049,2659.3,2658.4,6.12305]
[1724413885406,2.336,2659.2,2658.4,6.12305]
[1724413886637,2.336,2659.2,2658.4,2.3614]
[1724413886638,6.09653,2659.2,2658.4,2.3614]
[1724413886891,6.09653,2659.2,2658.4,5.3614]
[1724413887196,2.336,2659.2,2658.4,6.573711]
[1724413887383,2.336,2659.2,2658.4,10.335341]
[1724413888093,2.336,2659.2,2658.5,0.05679016]
[1724413889053,2.336,2659.2,2658.5,3.81827016]
[1724413889293,2.2977,2659.5,2658.9,3.76094]
[1724413889657,2.2977,2659.5,2659.0,0.05769022]
[1724413889962,2.3513,2659.8,2659.0,0.05769022]
[1724413890170,6.11098,2659.8,2659.0,3.81848022]
[1724413890381,7.398038,2659.8,2659.0,3.81848022]
[1724413890908,7.398038,2659.8,2659.0,0.05769022]
[1724413891300,7.398038,2659.8,2658.9,3.76092]
[1724413891500,7.398038,2659.8,2659.1,0.05796824]
[1724413891675,7.398038,2659.8,2659.0,0.05806494]
[1724413891875,7.398038,2659.8,2659.2,0.05787155]
[1724413892112,7.398038,2659.8,2659.1,0.05796824]
[1724413892292,7.398038,2659.8,2659.3,0.05777487]
[1724413892497,7.398038,2659.8,2659.2,0.05787155]
[1724413892698,7.398038,2659.8,2659.4,0.05767819]
[1724413893014,7.398038,2659.8,2659.0,7.49]
[1724413893015,1.1157638,2659.7,2659.5,0.05750839]
[1724413893200,1.1157638,2659.7,2659.0,7.49]
[1724413893400,6.11098,2659.8,2659.1,0.0578951]
[1724413894410,6.11098,2659.8,2659.2,2.3947]
[1724413894411,3.75968,2659.8,2659.2,2.3947]
[1724413894569,3.75982,2659.7,2659.3,0.05768802]
[1724413894769,3.75982,2659.7,2659.2,2.3947]
[1724413894970,3.75982,2659.7,2659.3,0.05768802]
[1724413895212,3.75982,2659.7,2659.2,2.3947]
[1724413895377,3.75982,2659.7,2659.3,0.05768802]
[1724413895578,3.75982,2659.7,2659.2,2.3947]
[1724413895788,3.75982,2659.7,2659.3,0.05768802]
[1724413895992,3.75982,2659.7,2659.2,2.3947]
[1724413896289,3.75982,2659.7,2659.3,0.05768802]
[1724413896612,3.75982,2659.7,2659.2,2.3947]
[1724413896817,3.75982,2659.7,2659.3,0.05768802]
[1724413896988,3.75982,2659.7,2659.2,2.3947]
[1724413897188,3.75982,2659.7,2659.3,0.05768802]
[1724413897388,3.75982,2659.7,2659.2,2.3947]
[1724413897711,3.75982,2659.7,2659.3,0.05768802]
[1724413898121,3.75982,2659.7,2659.2,2.3947]
[1724413898289,3.75982,2659.7,2659.4,0.05759134]
[1724413898487,3.75982,2659.7,2659.2,2.3947]
[1724413898488,3.75982,2659.7,2659.3,0.05768802]
[1724413898688,3.75982,2659.7,2659.5,0.05749468]
[1724413898888,3.75982,2659.7,2659.4,0.05759134]
[1724413899083,3.75982,2659.7,2659.6,0.05739802]
[1724413899308,3.75982,2659.7,2659.5,0.05749468]
[1724413899488,3.75982,2659.7,2659.6,0.05739802]
[1724413899907,3.7596,2659.9,2659.2,2.3947]
[1724413900235,3.7596,2659.9,2659.3,0.23947]
[1724413900413,3.7596,2659.9,2659.4,0.05757306]
[1724413900793,3.7596,2659.9,2659.2,2.3947]
[1724413901123,3.7596,2659.9,2659.3,0.05766974]
[1724413901724,5.4557,2660.0,2659.3,0.05766974]
[1724413901919,5.4557,2660.0,2659.3,3.81804974]
[1724413902111,9.21511,2660.0,2659.3,0.05766974]
[1724413902309,3.75955,2659.9,2659.3,0.05766974]
[1724413902621,3.75955,2659.9,2659.3,0.67895171]
[1724413902818,5.4557,2660.0,2659.3,0.67895171]
[1724413903026,2.4479,2660.3,2659.5,2.3708]
[1724413903326,3.75899,2660.3,2659.6,0.05721061]
[1724413904043,3.75914,2660.2,2659.6,0.05721061]
[1724413904335,3.75933,2660.1,2659.6,0.05721061]
[1724413904481,5.35023682,2659.9,2659.6,0.05721061]
[1724413904996,5.35023682,2659.9,2659.2,2.3046]
[1724413905406,5.35023682,2659.9,2659.3,0.05737722]
[1724413907220,3.75957,2659.9,2659.3,0.05737722]
[1724413907420,2.4432,2660.0,2659.3,0.05737722]
[1724413907733,3.75957,2659.9,2659.3,0.05737722]
[1724413907946,5.35023682,2659.9,2659.3,0.05737722]
[1724413908238,3.75984,2659.7,2659.3,0.05737722]
[1724413908396,3.75984,2659.7,2659.2,2.3046]
[1724413908736,3.75984,2659.7,2659.3,0.05741378]
[1724413909232,3.75984,2659.7,2659.2,2.3046]
[1724413909418,5.35023682,2659.9,2659.3,0.05741378]
[1724413909729,3.7597,2659.8,2659.3,0.05741378]
[1724413910092,3.7597,2659.8,2659.2,2.3046]
[1724413910298,3.7597,2659.8,2659.4,0.0573171]
[1724413910533,3.7597,2659.8,2659.3,0.05741378]
[1724413910733,3.7597,2659.8,2659.5,0.05722044]
[1724413910936,3.7597,2659.8,2659.2,2.3046]
[1724413910937,3.7597,2659.8,2659.4,0.0573171]
[1724413911108,3.7597,2659.8,2659.6,0.05712378]
[1724413911433,3.7597,2659.8,2659.7,0.05702712]
[1724413911594,4.99294585,2659.8,2659.2,2.3046]
[1724413911800,3.7597,2659.8,2659.3,0.05741378]
[1724413912095,3.22252168,2660.0,2659.0,2.3772]
[1724413912096,1.59066682,2659.4,2659.0,2.3772]
[1724413912325,5.35096682,2659.4,2659.0,2.3772]
[1724413913332,1.59066682,2659.6,2659.0,2.3772]
[1724413913632,2.2519,2659.8,2659.0,2.3772]
[1724413913633,7.60225682,2659.8,2659.1,0.23772]
[1724413913800,7.60225682,2659.8,2659.0,2.3772]
[1724413914329,3.84256682,2659.8,2659.0,2.3772]
[1724413914721,3.84256682,2659.8,2659.0,6.13792]
[1724413914902,7.60225682,2659.8,2659.0,2.3772]
[1724413916434,6.01159,2659.8,2659.0,2.3772]
[1724413916620,6.01159,2659.8,2659.0,3.740003]
[1724413917834,6.01159,2659.8,2659.1,0.05757975]
[1724413918941,3.76012,2659.5,2659.1,0.05757975]
[1724413919246,2.3301,2659.4,2659.1,0.05757975]
[1724413919424,2.3301,2659.4,2658.8,7.49]
[1724413919738,2.3301,2659.4,2658.9,0.05791482]
[1724413919938,3.76046,2659.3,2658.9,0.05791482]
[1724413921022,0.609022,2659.4,2658.9,0.05791482]
[1724413921352,3.76011,2659.5,2659.0,2.3687]
[1724413921849,3.76011,2659.5,2659.1,0.05779913]
[1724413922155,6.09047,2659.4,2659.1,0.05779913]
[1724413922652,6.09047,2659.4,2659.2,0.05768416]
[1724413922850,3.76038,2659.3,2659.2,0.05768416]
[1724413923023,4.745453,2659.3,2659.2,0.05768416]
[1724413923226,2.3301,2659.2,2658.3,12.48]
[1724413923451,3.76117,2658.8,2658.4,0.05861327]
[1724413923748,4.513325,2658.8,2658.4,0.05861327]
[1724413923960,3.76108,2658.9,2658.4,0.04958946]
[1724413924205,3.76088,2659.0,2658.4,0.04958946]
[1724413924457,3.76075,2659.1,2658.5,2.3974]
[1724413924842,3.76075,2659.1,2658.6,0.05814643]
[1724413925230,3.76082,2659.0,2658.6,0.05814643]
[1724413925554,5.045969,2659.0,2658.6,0.05814643]
[1724413926353,8.806879,2659.0,2658.6,0.05814643]
[1724413926856,5.045969,2659.0,2658.6,0.05814643]
[1724413927315,8.806889,2659.0,2658.6,0.05814643]
[1724413927519,5.045969,2659.0,2658.6,0.05814643]
[1724413928340,0.5045969,2658.9,2658.6,0.05814643]
[1724413928563,4.2655769,2658.9,2658.6,0.05814643]
[1724413928769,0.5045969,2658.9,2658.6,0.05814643]
[1724413928972,7.52175,2659.0,2658.6,0.05814643]
[1724413929176,3.76082,2659.0,2658.6,0.05814643]
[1724413929471,7.52172,2659.0,2658.6,0.05814643]
[1724413929769,3.76082,2659.0,2658.6,0.05814643]
[1724413932177,3.76078,2659.1,2658.6,0.05814643]
[1724413932339,3.7609,2659.0,2658.6,0.05814643]
[1724413932535,8.5291553,2659.1,2658.6,0.05814643]
[1724413932775,4.7683753,2659.1,2658.6,0.05814643]
[1724413932980,1.0075953,2659.1,2658.7,2.4041]
[1724413933157,4.7682653,2659.1,2658.7,2.4041]
[1724413933476,1.0075953,2659.1,2658.8,0.05807643]
[1724413933977,3.76054,2659.2,2658.8,0.05807643]
[1724413934775,3.76067,2659.1,2658.8,0.05807643]
[1724413935149,3.76053,2659.2,2658.8,0.05807643]
[1724413936357,7.52113,2659.2,2658.8,0.05807643]
[1724413936797,5.35203325,2659.2,2658.8,0.05807643]
[1724413937269,9.11267325,2659.2,2658.8,0.05807643]
[1724413937468,5.35203325,2659.2,2658.8,0.05807643]
[1724413938501,3.76067,2659.1,2658.8,0.05807643]
[1724413940198,3.76094,2659.0,2658.8,0.05807643]
[1724413940404,11.46030325,2658.9,2658.8,0.05807643]
[1724413940702,3.76159,2658.5,2657.9,2.3703]
[1724413940860,5.35309325,2658.5,2657.9,2.3703]
[1724413941167,5.35309325,2658.5,2658.0,0.05521797]
[1724413942587,7.52284,2658.6,2658.0,0.05521797]
[1724413942793,3.76137,2658.6,2658.0,0.05521797]
[1724413943239,8.275105,2658.6,2658.0,0.05521797]
[1724413943379,4.513625,2658.6,2658.0,0.05521797]
[1724413943684,8.275115,2658.6,2658.0,0.05521797]
[1724413944122,4.513625,2658.6,2658.0,0.05521797]
[1724413944292,3.76167,2658.4,2658.0,0.05521797]
[1724413944910,8.275125,2658.6,2658.0,0.05521797]
[1724413945209,6.10792,2658.9,2658.1,2.2568]
[1724413945544,3.7611,2658.8,2658.2,0.05520248]
[1724413946743,3.76126,2658.7,2658.2,0.05520248]
[1724413946924,7.52258,2658.7,2658.2,0.05520248]
[1724413947225,3.76126,2658.7,2658.2,0.05520248]
[1724413947523,0.376126,2658.6,2658.2,0.05520248]
[1724413948542,3.76155,2658.5,2658.2,0.05520248]
[1724413948689,0.376126,2658.6,2658.2,0.05520248]
[1724413949451,7.5226,2658.7,2658.2,0.05520248]
[1724413949589,3.76126,2658.7,2658.2,0.05520248]
[1724413950103,7.52263,2658.7,2658.2,0.05520248]
[1724413950294,3.76126,2658.7,2658.2,0.05520248]
[1724413950699,7.52259,2658.7,2658.2,0.05520248]
[1724413951045,4.748209,2658.7,2658.2,0.05520248]
[1724413951189,8.509519,2658.7,2658.2,0.05520248]
[1724413951393,3.76137,2658.6,2658.2,0.05520248]
[1724413951824,6.1079,2658.9,2658.2,0.05520248]
[1724413952130,3.0,2659.2,2658.2,0.05520248]
[1724413952131,10.92299032,2659.1,2658.3,2.4855]
[1724413952435,6.76083,2659.0,2658.3,2.4855]
[1724413952733,3.0,2659.0,2658.5,2.4855]
[1724413953142,3.0,2659.0,2658.6,0.05314879]
[1724413954296,6.76082,2659.0,2658.6,0.05314879]
[1724413955095,3.0,2659.0,2658.6,0.05314879]
[1724413955334,3.76082,2659.0,2658.6,0.05314879]
[1724413955528,3.0,2658.9,2658.6,0.05314879]
[1724413957690,6.76097,2658.9,2658.6,0.05314879]
[1724413958512,10.52201,2658.9,2658.6,0.05314879]
[1724413959449,3.76109,2658.8,2658.6,0.05314879]
[1724413959637,3.76123,2658.7,2658.6,0.05314879]
[1724413960020,7.52232,2658.8,2658.6,0.05314879]
[1724413960226,3.76109,2658.8,2658.6,0.05314879]
[1724413960436,7.52228,2658.8,2658.6,0.05314879]
[1724413960616,1.1665608,2658.7,2658.6,0.05314879]
[1724413961051,3.76109,2658.8,2658.6,0.05314879]
[1724413962940,1.59189546,2658.7,2658.6,0.05314879]
[1724413963247,1.59189546,2658.7,2658.3,2.478]
[1724413963440,1.59189546,2658.4,2658.1,7.49]
[1724413963647,1.59189546,2658.4,2657.8,2.478]
[1724413963883,3.76132,2658.7,2657.9,2.478]
[1724413964045,5.35321546,2658.7,2657.9,2.478]
[1724413964543,5.35321546,2658.7,2658.1,2.478]
[1724413969210,1.59189546,2658.7,2658.1,2.478]
[1724413970425,5.35315546,2658.7,2658.1,2.478]
[1724413972614,1.59189546,2658.7,2658.1,6.24007]
[1724413972945,1.59189546,2658.7,2658.2,2.2833]
[1724413973159,3.0,2658.9,2658.3,3.76177]
[1724413973448,3.0,2658.9,2658.4,2.2833]
[1724413973649,3.85124566,2659.5,2658.7,3.76123]
[1724413973949,3.85124566,2659.5,2658.5,0.07522929]
[1724413973950,1.59189546,2659.1,2658.8,2.3284]
[1724413974311,1.59189546,2659.1,2658.4,7.49]
[1724413974504,1.59189546,2658.9,2658.5,2.3284]
[1724413977929,1.59189546,2658.9,2658.6,0.05244609]
[1724413984050,2.12716801,2658.9,2658.6,0.05244609]
[1724413986046,1.59189546,2658.7,2658.6,0.05244609]
[1724413986481,5.35312546,2658.7,2658.6,0.05244609]
[1724413986682,5.35312546,2658.7,2658.3,2.273]
[1724413987286,1.59189546,2658.5,2658.4,0.05255293]
[1724413987584,1.59189546,2658.5,2658.1,2.273]
[1724413987758,2.50335301,2658.5,2658.4,0.05251645]
[1724413987960,2.50335301,2658.5,2658.1,2.273]
[1724413988161,2.50335301,2658.5,2658.4,0.05251645]
[1724413988357,2.50335301,2658.5,2658.1,2.273]
[1724413988564,2.50335301,2658.5,2658.4,0.05251645]
[1724413988753,2.50335301,2658.5,2658.1,2.273]
[1724413989094,2.50335301,2658.5,2658.4,0.05251645]
[1724413989682,2.50335301,2658.5,2658.1,2.273]
[1724413989892,1.59189546,2658.5,2658.4,0.05251645]
[1724413990192,5.35312546,2658.7,2658.4,0.0525894]
[1724413990357,6.50323301,2658.7,2658.1,2.273]
[1724413990558,6.50323301,2658.7,2658.5,0.05249266]
[1724413990886,6.50323301,2658.7,2658.6,0.0525236]
[1724413991552,6.50323301,2658.7,2658.1,2.273]
[1724413991748,6.50323301,2658.7,2658.6,0.0525236]
[1724413991949,6.50323301,2658.7,2658.1,2.273]
[1724413992291,10.26455301,2658.7,2658.6,0.0525236]
[1724413993797,6.50323301,2658.7,2658.6,0.0525236]
[1724413993971,6.50323301,2658.7,2658.1,2.273]
[1724413994174,6.50323301,2658.7,2658.6,0.0525236]
[1724413994371,6.50323301,2658.7,2658.1,2.273]
[1724413994571,6.50323301,2658.7,2658.6,0.0525236]
[1724413994785,6.50323301,2658.7,2658.1,2.273]
[1724413994982,0.8890133,2658.6,2658.1,2.273]
[1724413995299,3.76105,2658.9,2658.2,6.14787]
[1724413995300,5.35294546,2658.9,2658.2,6.14787]
[1724413995500,5.35294546,2658.9,2658.3,2.386]
[1724413996063,3.76109,2658.8,2658.3,2.386]
[1724413996415,1.59189546,2658.7,2658.3,2.386]
[1724413997118,6.26453701,2658.7,2658.0,2.386]
[1724413998121,1.59189546,2658.5,2658.0,2.386]
[1724413999887,5.35341546,2658.5,2658.0,2.386]
[1724414000198,7.66941546,2658.5,2658.0,2.386]
[1724414000910,3.90789546,2658.5,2658.0,2.386]
[1724414002135,1.59189546,2658.5,2658.0,2.386]
[1724414003202,5.35347546,2658.5,2658.0,2.386]
[1724414003406,0.53534755,2658.4,2658.0,2.386]
[1724414004781,4.29702755,2658.4,2658.0,2.386]
[1724414004982,4.29702755,2658.4,2657.8,9.9124]
[1724414008028,2.316,2658.7,2657.9,3.81554104]
[1724414008226,5.35327546,2658.6,2657.9,3.81554104]
[1724414010258,1.59189546,2658.6,2657.9,3.81554104]
[1724414016853,5.35327546,2658.6,2657.9,3.81554104]
[1724414017287,1.59189546,2658.6,2658.0,6.09655]
[1724414017462,2.35880901,2658.6,2658.0,6.09655]
[1724414017645,2.35880901,2658.6,2658.1,0.0530894]
[1724414021090,1.59189546,2658.4,2658.1,0.0530894]
[1724414021457,1.59189546,2658.2,2658.1,0.0530894]
[1724414021791,1.59189546,2658.2,2657.7,6.03794]
[1724414021946,1.59189546,2658.0,2657.7,2.2753]
[1724414022967,1.59189546,2658.0,2657.8,0.05342077]
[1724414023386,1.59189546,2658.0,2657.7,2.2753]
[1724414023597,1.59189546,2658.0,2657.9,0.05342432]
[1724414023795,1.59189546,2658.0,2657.7,2.2753]
[1724414024206,1.59189546,2658.0,2657.8,0.0535211]
[1724414024365,1.59189546,2658.0,2657.7,2.2753]
[1724414024567,1.59189546,2658.0,2657.9,0.05342432]
[1724414024903,1.59189546,2658.0,2657.7,2.2753]
[1724414025109,1.59189546,2658.0,2657.9,0.05342432]
[1724414025577,1.59189546,2658.0,2657.7,2.2753]
[1724414025777,1.59189546,2658.0,2657.9,0.05356114]
[1724414026019,1.59189546,2658.0,2657.7,2.2753]
[1724414026185,1.59189546,2658.0,2657.9,0.05356114]
[1724414026388,1.59189546,2658.0,2657.8,0.05365792]
[1724414026613,1.59189546,2658.0,2657.7,2.2753]
[1724414026911,1.59189546,2658.0,2657.9,0.05356114]
[1724414027116,1.59189546,2658.0,2657.8,0.05365792]
[1724414027421,1.59189546,2658.0,2657.9,0.05356114]
[1724414027613,1.59189546,2658.0,2657.7,2.2753]
[1724414027823,1.59189546,2658.0,2657.9,0.05356114]
[1724414028024,1.59189546,2658.0,2657.7,2.2753]
[1724414028182,1.59189546,2658.0,2657.9,0.05356114]
[1724414028382,1.59189546,2658.0,2657.8,0.05365792]
[1724414028581,1.59189546,2658.0,2657.7,2.2753]
[1724414028890,1.59189546,2658.0,2657.9,0.05356114]
[1724414029090,1.59189546,2658.0,2657.8,0.05365792]
[1724414029273,1.59189546,2658.0,2657.9,0.05356114]
[1724414029712,1.59189546,2658.0,2657.7,2.2753]
[1724414029917,1.59189546,2658.0,2657.9,0.05356114]
[1724414030135,1.59189546,2658.0,2657.8,0.05365792]
[1724414030336,1.59189546,2658.0,2657.9,0.05356114]
[1724414030523,1.59189546,2658.0,2657.7,2.2753]
[1724414030925,1.59189546,2658.0,2657.8,0.05365792]
[1724414031338,1.59189546,2658.0,2657.7,2.2753]
[1724414031545,1.59189546,2658.0,2657.9,0.05356114]
[1724414031739,1.59189546,2658.0,2657.8,0.05365792]
[1724414031956,1.59189546,2658.0,2657.9,0.05356114]
[1724414032319,1.59189546,2658.0,2657.7,2.2753]
[1724414032655,1.59189546,2658.0,2657.8,0.05365792]
[1724414032865,1.59189546,2658.0,2657.7,2.2753]
[1724414033031,1.59189546,2658.0,2657.9,0.05356114]
[1724414033229,1.59189546,2658.0,2657.7,2.2753]
[1724414033435,1.59189546,2658.0,2657.9,0.05356114]
[1724414033753,1.59189546,2658.0,2657.7,2.2753]
[1724414033938,1.59189546,2658.0,2657.9,0.0535657]
[1724414034143,2.4951,2657.9,2657.8,0.05366248]
[1724414034342,7.84947546,2657.9,2657.5,7.49]
[1724414034541,1.59189546,2657.7,2657.5,7.49]
[1724414034731,1.59189546,2657.7,2657.4,14.8346]
[1724414034732,1.59189546,2657.7,2657.4,2.3546]
[1724414036555,1.59189546,2657.5,2657.2,2.3546]
[1724414037492,1.59189546,2657.7,2657.2,2.3546]
[1724414037979,1.59189546,2657.7,2657.3,0.05419214]
[1724414038182,1.59189546,2657.7,2657.2,6.11795]
[1724414038489,1.59189546,2657.7,2657.4,0.05409532]
[1724414038653,1.59189546,2657.7,2657.3,0.05419214]
[1724414038990,1.59189546,2657.7,2657.4,0.05409532]
[1724414039165,1.59189546,2657.7,2657.2,7.855098]
[1724414039360,1.59189546,2657.7,2657.3,0.05419214]
[1724414039547,4.08699546,2657.9,2657.2,7.855008]
[1724414039860,4.08699546,2657.9,2657.3,0.05419214]
[1724414040055,1.59189546,2658.1,2657.6,2.3672]
[1724414040274,4.59189546,2658.1,2657.6,2.3672]
[1724414040450,4.59189546,2658.1,2657.7,0.0538049]
[1724414041546,8.35399546,2658.1,2657.7,0.0538049]
[1724414041772,0.83539955,2658.0,2657.7,0.0538049]
[1724414043485,1.59189546,2657.9,2657.7,0.0538049]
[1724414044454,1.59189546,2657.9,2657.4,2.4388]
[1724414044669,1.59189546,2657.9,2657.8,0.05370811]
[1724414044875,1.59189546,2657.9,2657.4,2.4388]
[1724414045071,1.59189546,2657.9,2657.8,0.05370811]
[1724414045463,1.59189546,2657.9,2657.4,2.4388]
[1724414045764,1.59189546,2657.9,2657.5,0.05415359]
[1724414045963,3.12507096,2657.9,2657.5,0.05415359]
[1724414046849,6.88744096,2657.9,2657.5,0.05415359]
[1724414048865,5.35426546,2657.9,2657.5,0.05415359]
[1724414049591,3.76237,2657.9,2657.5,0.05415359]
[1724414050801,3.76223,2658.0,2657.5,0.05415359]
[1724414052906,3.76238,2657.9,2657.5,0.05415359]
[1724414053067,5.35427546,2657.9,2657.5,0.05415359]
[1724414053462,1.59189546,2657.9,2657.5,0.05415359]